Workbook

Sheet Tabelle1
B3: t | C3: 0 | D3: s | F3: s (Schnellzug) | G3: =IF(C3<=Tabelle2!M10,C4*C3+0.5*C6*C3*C3,C4*Tabelle2!M10+0.5*C6*Tabelle2!M10*Tabelle2!M10) -> 0 | H3: m | I3: =4200-G3 -> 4200
B4: v{s} | C4: =120/3.6 -> 33.33333333 | D4: m/s | F4: s (Güterzug) | G4: =C5*C3+C7 -> 1000 | H4: m | I4: =4200-G4 -> 3200
B5: v{g} | C5: =40/3.6 -> 11.11111111 | D5: m/s
B6: a{s} | C6: -0.1388888889 | D6: m/s^2
B7: s0{g} | C7: 1000 | D7: m
D20: Schnellzug | E20: Güterzug
E21: `````` | F21: 1000m
F28: Zeit t:

Sheet Tabelle2
B3: t | D3: s
B4: v{s} | C4: =Tabelle1!C4 -> 33.33333333 | D4: m/s
B5: v{g} | C5: =Tabelle1!C5 -> 11.11111111 | D5: m/s
B6: a{s} | C6: =Tabelle1!C6 -> -0.1388888889 | D6: m/s^2
B7: s0{g} | C7: =Tabelle1!C7 -> 1000 | D7: m
B9: t | C9: s{s} | D9: s{g} | E9: Spalte für die bewegten Punkte | J9: Abschnitt wichtig für Bestimmung der Zeit, ab der der Schnellzug steht
B10: 0 | C10: =IF($B10<=240,$C$4*$B10+0.5*$C$6*$B10*$B10,$C$4*240+0.5*$C$6*240*240) -> 0 | D10: =$C$5*B10+$C$7 -> 1000 | E10: =Tabelle1!G3 -> 0 | F10: S{s} | G10: =Tabelle1!G3 -> 0 | J10: =C10 -> 0 | K10: =B10 -> 0 | M10: =VLOOKUP(MAX(J:J),J:K,2,FALSE) -> 240
B11: =B10+5 -> 5 | C11: =IF($C$4*$B11+0.5*$C$6*$B11*$B11>C10,$C$4*$B11+0.5*$C$6*$B11*$B11,C10) -> 164.9305556 | D11: =$C$5*B11+$C$7 -> 1055.555556 | E11: =Tabelle1!G3+1 -> 1 | G11: =Tabelle1!G4 -> 1000 | J11: =C11 -> 164.9305556 | K11: 5 | M11: Ergebnis
B12: =B11+5 -> 10 | C12: =IF($C$4*$B12+0.5*$C$6*$B12*$B12>C11,$C$4*$B12+0.5*$C$6*$B12*$B12,C11) -> 326.3888889 | D12: 1111.111111 | E12: =Tabelle1!G3+0 -> 0 | G12: =Tabelle1!C3 -> 0 | J12: 326.3888889 | K12: 10
B13: 15 | C13: 484.375 | D13: 1166.666667 | E13: =Tabelle1!G3+1 -> 1 | J13: 484.375 | K13: 15
B14: 20 | C14: 638.8888889 | D14: 1222.222222 | J14: 638.8888889 | K14: 20
B15: 25 | C15: 789.9305556 | D15: 1277.777778 | J15: 789.9305556 | K15: 25
B16: 30 | C16: 937.5 | D16: 1333.333333 | E16: =Tabelle1!G4 -> 1000 | F16: s{g} | J16: 937.5 | K16: 30
B17: 35 | C17: 1081.597222 | D17: 1388.888889 | E17: =Tabelle1!G4+1 -> 1001 | J17: 1081.597222 | K17: 35
B18: 40 | C18: 1222.222222 | D18: 1444.444444 | E18: =Tabelle1!G4+0 -> 1000 | J18: 1222.222222 | K18: 40
B19: 45 | C19: 1359.375 | D19: 1500 | E19: =Tabelle1!G4+1 -> 1001 | J19: 1359.375 | K19: 45
B20: 50 | C20: 1493.055556 | D20: 1555.555556 | J20: 1493.055556 | K20: 50
B21: 55 | C21: 1623.263889 | D21: 1611.111111 | J21: 1623.263889 | K21: 55
B22: 60 | C22: 1750 | D22: 1666.666667 | E22: =Tabelle1!C3 -> 0 | F22: t | J22: 1750 | K22: 60
B23: 65 | C23: 1873.263889 | D23: 1722.222222 | E23: =Tabelle1!C3+1 -> 1 | J23: 1873.263889 | K23: 65
B24: 70 | C24: 1993.055556 | D24: 1777.777778 | E24: =Tabelle1!C3+1 -> 1 | J24: =C24 -> 1993.055556 | K24: 70
B25: 75 | C25: 2109.375 | D25: 1833.333333 | E25: =Tabelle1!C3+1 -> 1 | J25: =C25 -> 2109.375 | K25: 75
B26: 80 | C26: 2222.222222 | D26: 1888.888889 | J26: 2222.222222 | K26: 80
B27: 85 | C27: 2331.597222 | D27: 1944.444444 | J27: 2331.597222 | K27: 85
B28: 90 | C28: 2437.5 | D28: 2000 | J28: 2437.5 | K28: 90
B29: 95 | C29: 2539.930556 | D29: 2055.555556 | J29: 2539.930556 | K29: 95
B30: 100 | C30: 2638.888889 | D30: 2111.111111 | J30: 2638.888889 | K30: 100
B31: 105 | C31: 2734.375 | D31: 2166.666667 | J31: 2734.375 | K31: 105
B32: 110 | C32: 2826.388889 | D32: 2222.222222 | J32: 2826.388889 | K32: 110
B33: 115 | C33: 2914.930556 | D33: 2277.777778 | J33: 2914.930556 | K33: 115
B34: 120 | C34: 3000 | D34: 2333.333333 | J34: 3000 | K34: 120
B35: =B34+5 -> 125 | C35: 3081.597222 | D35: 2388.888889 | J35: 3081.597222 | K35: 125
B36: 130 | C36: 3159.722222 | D36: 2444.444444 | J36: 3159.722222 | K36: 130
B37: 135 | C37: 3234.375 | D37: 2500 | J37: 3234.375 | K37: 135
B38: 140 | C38: 3305.555556 | D38: 2555.555556 | J38: 3305.555556 | K38: 140
B39: 145 | C39: 3373.263889 | D39: 2611.111111 | J39: 3373.263889 | K39: 145
B40: 150 | C40: 3437.5 | D40: 2666.666667 | J40: 3437.5 | K40: 150
B41: 155 | C41: 3498.263889 | D41: 2722.222222 | J41: 3498.263889 | K41: 155
B42: 160 | C42: 3555.555556 | D42: 2777.777778 | J42: 3555.555556 | K42: =B42 -> 160
B43: 165 | C43: 3609.375 | D43: 2833.333333 | J43: 3609.375 | K43: 165
B44: 170 | C44: 3659.722222 | D44: 2888.888889 | J44: 3659.722222 | K44: 170
B45: 175 | C45: 3706.597222 | D45: 2944.444444 | J45: 3706.597222 | K45: 175
B46: 180 | C46: 3750 | D46: 3000 | J46: 3750 | K46: 180
B47: 185 | C47: 3789.930556 | D47: 3055.555556 | J47: 3789.930556 | K47: 185
B48: 190 | C48: 3826.388889 | D48: 3111.111111 | J48: 3826.388889 | K48: 190
B49: 195 | C49: 3859.375 | D49: 3166.666667 | J49: 3859.375 | K49: 195
B50: 200 | C50: 3888.888889 | D50: 3222.222222 | J50: 3888.888889 | K50: 200
B51: 205 | C51: 3914.930556 | D51: 3277.777778 | J51: 3914.930556 | K51: 205
B52: 210 | C52: 3937.5 | D52: 3333.333333 | J52: 3937.5 | K52: 210
B53: 215 | C53: 3956.597222 | D53: 3388.888889 | J53: 3956.597222 | K53: 215
B54: 220 | C54: 3972.222222 | D54: 3444.444444 | J54: 3972.222222 | K54: 220
B55: 225 | C55: 3984.375 | D55: 3500 | J55: 3984.375 | K55: 225
B56: 230 | C56: 3993.055556 | D56: 3555.555556 | J56: 3993.055556 | K56: 230
B57: 235 | C57: 3998.263889 | D57: 3611.111111 | J57: 3998.263889 | K57: 235
B58: 240 | C58: 4000 | D58: 3666.666667 | J58: 4000 | K58: 240
B59: =B58+5 -> 245 | C59: 4000 | D59: 3722.222222 | J59: 4000 | K59: 245
B60: 250 | C60: 4000 | D60: 3777.777778 | J60: 4000 | K60: 250
B61: 255 | C61: 4000 | D61: 3833.333333 | J61: 4000 | K61: 255
B62: 260 | C62: 4000 | D62: 3888.888889 | J62: 4000 | K62: 260
B63: 265 | C63: 4000 | D63: 3944.444444 | J63: 4000 | K63: 265
B64: 270 | C64: 4000 | D64: 4000 | J64: 4000 | K64: 270
B65: =B64+5 -> 275 | C65: 4000 | D65: 4055.555556 | J65: 4000 | K65: 275
B66: 280 | C66: 4000 | D66: 4111.111111 | J66: 4000 | K66: 280

Sheet Tabelle3
